{"text_format":"1","workbook":"xlsx","n_sheets":2,"sheets":["禁煙目標シート","Sheet2"],"not_rendered":{"charts":2,"images":10,"macros":1,"external_links":0,"defined_names":0,"comments":0,"pivot_tables":0},"unopened":[],"bounds":{"document_bytes":16777216,"sheet_cells":100000,"rows_first":2000,"rows_last":500,"rows_between":2000,"halvings":0,"cell_chars":16384,"cell_head_chars":4096},"cells_cut":0,"cells_raw":0,"read":"whole","date_system":"1900"}

{"sheet":"禁煙目標シート","index":0,"n_rows":79,"n_cols":25,"rows_kept":79,"cut":false,"hidden":false,"merged":[[5,2,5,3],[5,6,5,8],[6,2,6,3],[6,6,6,8],[7,2,7,3],[7,5,9,5],[7,6,9,8],[8,2,8,3],[9,2,9,3],[13,1,13,8],[47,1,47,8],[10,2,10,3],[10,7,10,8],[11,2,11,3],[12,2,12,3],[11,5,12,5],[11,6,12,8]]}
[]
[null,"禁煙目標シート",null,null,null,null,null,"実施月："]
[]
[]
[]
[]
[null,"銘柄","マイクロマイルド",null,null,"目標時期","１ か月"]
[null,"タール",8,null,null,"欲しいもの","パソコン"]
[null,"ニコチン",0.7,null,null,null,null,null,null,null,null,null,null,null,null,null,null,null,null,null,null,null,null,null,"祝日設定"]
[null,"価格",440,null,null,null,null,null,null,null,null,null,null,null,null,null,null,null,null,null,null,null,null,null,"2011-01-01"]
[null,"本数 / 1box",20,null,null,"目標節約金額",50000,{"$f":"IF($G$11-SUM(G16:G46)<=0,\"達成！\",$G$11-SUM(G16:G46))","v":47558},null,null,null,null,null,null,null,null,null,null,null,null,null,null,null,null,"2011-01-10"]
[null,"金額 / 1本",22,null,null,"寿命貯金",{"$f":"SUM(E16:E46)*5.5/1440","v":0.42395833333333333},null,null,null,null,null,null,null,null,null,null,null,null,null,null,null,null,null,"2011-02-11"]
[null,"1日の本数",20,null,null,null,null,null,null,null,null,null,null,null,null,null,null,null,null,null,null,null,null,null,"2011-03-21"]
[null,"※煙草1本につき、寿命が5分30秒縮むと言われています。寿命貯金＝吸わなかった本数×5.5分 / 1440分",null,null,null,null,null,null,null,null,null,null,null,null,null,null,null,null,null,null,null,null,null,null,"2011-04-29"]
[null,"日付","目標本数","吸った本数","節約した本数","使った金額","節約できた額","摂取タール量","摂取ニコチン量",null,null,null,null,null,null,null,null,null,null,null,null,null,null,null,"2011-05-05"]
[{"$f":"TEXT(B16,\"aaa\")","v":"金"},{"$f":"DATE(YEAR(TODAY()),B47,1)","v":"2016-01-01"},19,18,{"$f":"IF($D16=\"\",\"\",$C$13-$D16)","v":2},{"$f":"IF($D16=\"\",\"\",$C$12*$D16)","v":396},{"$f":"IF($D16=\"\",\"\",($C$13-$D16)*$C$12)","v":44},{"$f":"IFERROR($C$8*D16,\"\")","v":144},{"$f":"IFERROR($C$9*D16,\"\")","v":12.6},null,null,null,null,null,null,null,null,null,null,null,null,null,null,null,"2011-07-18"]
[{"$f":"TEXT(B17,\"aaa\")","v":"土"},{"$f":"IF(ISERROR(IF(MONTH(B16+1)=MONTH(B16), B16+1,\"\")),\"\",IF(MONTH(B16+1)=MONTH(B16), B16+1,\"\"))","v":"2016-01-02"},19,18,2,396,44,144,12.6,null,null,null,null,null,null,null,null,null,null,null,null,null,null,null,"2011-09-19"]
["日","2016-01-03",19,17,3,374,66,136,11.899999999999999,null,null,null,null,null,null,null,null,null,null,null,null,null,null,null,"2011-09-23"]
["月","2016-01-04",18,17,3,374,66,136,11.899999999999999,null,null,null,null,null,null,null,null,null,null,null,null,null,null,null,"2011-10-10"]
["火","2016-01-05",18,16,4,352,88,128,11.2,null,null,null,null,null,null,null,null,null,null,null,null,null,null,null,"2011-11-03"]
["水","2016-01-06",17,16,4,352,88,128,11.2,null,null,null,null,null,null,null,null,null,null,null,null,null,null,null,"2011-11-23"]
["木","2016-01-07",17,15,{"$f":"IF($D22=\"\",\"\",$C$13-$D22)","v":5},330,110,120,10.5,null,null,null,null,null,null,null,null,null,null,null,null,null,null,null,"2011-12-23"]
["金","2016-01-08",17,15,5,330,110,120,10.5,null,null,null,null,null,null,null,null,null,null,null,null,null,null,null,"2011-12-30"]
["土","2016-01-09",16,15,5,330,110,120,10.5,null,null,null,null,null,null,null,null,null,null,null,null,null,null,null,"2011-12-31"]
["日","2016-01-10",16,14,6,308,132,112,9.7999999999999989,null,null,null,null,null,null,null,null,null,null,null,null,null,null,null,"2012-01-01"]
["月","2016-01-11",16,14,6,308,132,112,9.7999999999999989,null,null,null,null,null,null,null,null,null,null,null,null,null,null,null,"2012-01-02"]
["火","2016-01-12",17,14,6,308,132,112,9.7999999999999989,null,null,null,null,null,null,null,null,null,null,null,null,null,null,null,"2012-01-09"]
["水","2016-01-13",16,14,6,308,132,112,9.7999999999999989,null,null,null,null,null,null,null,null,null,null,null,null,null,null,null,"2012-02-11"]
["木","2016-01-14",16,15,5,330,110,120,10.5,null,null,null,null,null,null,null,null,null,null,null,null,null,null,null,"2012-03-20"]
["金","2016-01-15",16,15,5,330,110,120,10.5,null,null,null,null,null,null,null,null,null,null,null,null,null,null,null,"2012-04-29"]
["土","2016-01-16",15,15,5,330,110,120,10.5,null,null,null,null,null,null,null,null,null,null,null,null,null,null,null,"2012-04-30"]
["日","2016-01-17",15,15,5,330,110,120,10.5,null,null,null,null,null,null,null,null,null,null,null,null,null,null,null,"2012-05-03"]
["月","2016-01-18",15,15,5,330,110,120,10.5,null,null,null,null,null,null,null,null,null,null,null,null,null,null,null,"2012-05-04"]
["火","2016-01-19",14,15,5,330,110,120,10.5,null,null,null,null,null,null,null,null,null,null,null,null,null,null,null,"2012-05-05"]
["水","2016-01-20",14,14,6,308,132,112,9.7999999999999989,null,null,null,null,null,null,null,null,null,null,null,null,null,null,null,"2012-07-16"]
["木","2016-01-21",14,14,6,308,132,112,9.7999999999999989,null,null,null,null,null,null,null,null,null,null,null,null,null,null,null,"2012-09-17"]
["金","2016-01-22",13,14,6,308,132,112,9.7999999999999989,null,null,null,null,null,null,null,null,null,null,null,null,null,null,null,"2012-09-22"]
["土","2016-01-23",13,14,6,308,132,112,9.7999999999999989,null,null,null,null,null,null,null,null,null,null,null,null,null,null,null,"2012-10-08"]
["日","2016-01-24",null,null,"","","",0,0,null,null,null,null,null,null,null,null,null,null,null,null,null,null,null,"2012-11-03"]
["月","2016-01-25",null,null,"","","",0,0,null,null,null,null,null,null,null,null,null,null,null,null,null,null,null,"2012-11-23"]
["火","2016-01-26",null,null,"","","",0,0,null,null,null,null,null,null,null,null,null,null,null,null,null,null,null,"2012-12-23"]
["水","2016-01-27",null,null,"","","",0,0,null,null,null,null,null,null,null,null,null,null,null,null,null,null,null,"2012-12-24"]
["木","2016-01-28",null,null,"","","",0,0,null,null,null,null,null,null,null,null,null,null,null,null,null,null,null,"2013-01-01"]
["金","2016-01-29",null,null,"","","",0,0,null,null,null,null,null,null,null,null,null,null,null,null,null,null,null,"2013-01-14"]
["土","2016-01-30",null,null,"","","",0,0,null,null,null,null,null,null,null,null,null,null,null,null,null,null,null,"2013-02-11"]
["日","2016-01-31",null,null,"","","",0,0,null,null,null,null,null,null,null,null,null,null,null,null,null,null,null,"2013-03-20"]
[null,1,null,null,null,null,null,null,null,null,null,null,null,null,null,null,null,null,null,null,null,null,null,null,"2013-04-29"]
[null,"禁煙目標グラフ",null,null,null,null,null,null,null,null,null,null,null,null,null,null,null,null,null,null,null,null,null,null,"2013-05-03"]
[null,null,null,null,null,null,null,null,null,null,null,null,null,null,null,null,null,null,null,null,null,null,null,null,"2013-05-04"]
[null,null,null,null,null,null,null,null,null,null,null,null,null,null,null,null,null,null,null,null,null,null,null,null,"2013-05-05"]
[null,null,null,null,null,null,null,null,null,null,null,null,null,null,null,null,null,null,null,null,null,null,null,null,"2013-05-06"]
[null,null,null,null,null,null,null,null,null,null,null,null,null,null,null,null,null,null,null,null,null,null,null,null,"2013-07-15"]
[null,null,null,null,null,null,null,null,null,null,null,null,null,null,null,null,null,null,null,null,null,null,null,null,"2013-09-16"]
[null,1,null,null,null,null,null,null,null,null,null,null,null,null,null,null,null,null,null,null,null,null,null,null,"2013-09-23"]
[null,null,null,null,null,null,null,null,null,null,null,null,null,null,null,null,null,null,null,null,null,null,null,null,"2013-10-14"]
[null,null,null,null,null,null,null,null,null,null,null,null,null,null,null,null,null,null,null,null,null,null,null,null,"2013-11-03"]
[null,null,null,null,null,null,null,null,null,null,null,null,null,null,null,null,null,null,null,null,null,null,null,null,"2013-11-04"]
[null,null,null,null,null,null,null,null,null,null,null,null,null,null,null,null,null,null,null,null,null,null,null,null,"2013-11-23"]
[null,null,null,null,null,null,null,null,null,null,null,null,null,null,null,null,null,null,null,null,null,null,null,null,"2013-12-23"]
[null,null,null,null,null,null,null,null,null,null,null,null,null,null,null,null,null,null,null,null,null,null,null,null,"2014-01-01"]
[null,null,null,null,null,null,null,null,null,null,null,null,null,null,null,null,null,null,null,null,null,null,null,null,"2014-01-13"]
[null,null,null,null,null,null,null,null,null,null,null,null,null,null,null,null,null,null,null,null,null,null,null,null,"2014-02-11"]
[null,null,null,null,null,null,null,null,null,null,null,null,null,null,null,null,null,null,null,null,null,null,null,null,"2014-03-21"]
[null,null,null,null,null,null,null,null,null,null,null,null,null,null,null,null,null,null,null,null,null,null,null,null,"2014-04-29"]
[null,null,null,null,null,null,null,null,null,null,null,null,null,null,null,null,null,null,null,null,null,null,null,null,"2014-05-03"]
[null,null,null,null,null,null,null,null,null,null,null,null,null,null,null,null,null,null,null,null,null,null,null,null,"2014-05-04"]
[null,null,null,null,null,null,null,null,null,null,null,null,null,null,null,null,null,null,null,null,null,null,null,null,"2014-05-05"]
[null,null,null,null,null,null,null,null,null,null,null,null,null,null,null,null,null,null,null,null,null,null,null,null,"2014-05-06"]
[null,null,null,null,null,null,null,null,null,null,null,null,null,null,null,null,null,null,null,null,null,null,null,null,"2014-07-21"]
[null,null,null,null,null,null,null,null,null,null,null,null,null,null,null,null,null,null,null,null,null,null,null,null,"2014-09-15"]
[null,null,null,null,null,null,null,null,null,null,null,null,null,null,null,null,null,null,null,null,null,null,null,null,"2014-09-23"]
[null,null,null,null,null,null,null,null,null,null,null,null,null,null,null,null,null,null,null,null,null,null,null,null,"2014-10-13"]
[null,null,null,null,null,null,null,null,null,null,null,null,null,null,null,null,null,null,null,null,null,null,null,null,"2014-11-03"]
[null,null,null,null,null,null,null,null,null,null,null,null,null,null,null,null,null,null,null,null,null,null,null,null,"2014-11-23"]
[null,null,null,null,null,null,null,null,null,null,null,null,null,null,null,null,null,null,null,null,null,null,null,null,"2014-11-24"]
[null,null,null,null,null,null,null,null,null,null,null,null,null,null,null,null,null,null,null,null,null,null,null,null,"2014-12-23"]
[null,null,null,null,null,null,null,null,null,null,null,null,null,null,null,null,null,null,null,null,null,null,null,null,"2015-01-01"]
[null,null,null,null,null,null,null,null,null,null,null,null,null,null,null,null,null,null,null,null,null,null,null,null,"2015-01-12"]
[null,null,null,null,null,null,null,null,null,null,null,null,null,null,null,null,null,null,null,null,null,null,null,null,"2015-02-11"]

{"sheet":"Sheet2","index":1,"n_rows":17,"n_cols":2,"rows_kept":17,"cut":false,"hidden":true,"merged":[]}
[]
[1,"1月"]
[2,"2月"]
[3,"3月"]
[4,"4月"]
[5,"5月"]
[6,"6月"]
[7,"7月"]
[8,"8月"]
[9,"9月"]
[10,"10月"]
[11,"11月"]
[12,"12月"]
[]
[null,2]
[]
[null,{"$f":"VLOOKUP(B15,A2:B13,2,0)","v":"2月"}]